Department Of Health,Entity,Date of Payment,Expense Type,Expense Area,Supplier ,Amount,Month
Department Of Health,United Lincolnshire Hospitals NHS Trust,2021-11-18,PHARMACY PILGRIM,DIAGNOSTICS,AAH HOSPITAL SERVICE,"41,422.68",Nov-21
Department Of Health,United Lincolnshire Hospitals NHS Trust,2021-11-25,PHARMACY PILGRIM,DIAGNOSTICS,AAH HOSPITAL SERVICE,"31,757.39",Nov-21
Department Of Health,United Lincolnshire Hospitals NHS Trust,2021-11-25,PHARMACY PILGRIM,DIAGNOSTICS,AAH HOSPITAL SERVICE,"26,512.49",Nov-21
Department Of Health,United Lincolnshire Hospitals NHS Trust,2021-11-25,PHARMACY PILGRIM,DIAGNOSTICS,AAH HOSPITAL SERVICE,"26,234.36",Nov-21
Department Of Health,United Lincolnshire Hospitals NHS Trust,2021-11-25,CONSULTANTS BANK,DIRECTOR OF FINANCE & DIGITAL,AGILE WORKFORCE SERVICES LTD,"28,453.90",Nov-21
Department Of Health,United Lincolnshire Hospitals NHS Trust,2021-11-25,CONSULTANTS BANK,DIRECTOR OF FINANCE & DIGITAL,AGILE WORKFORCE SERVICES LTD,"26,933.79",Nov-21
Department Of Health,United Lincolnshire Hospitals NHS Trust,2021-11-18,PHARMACY,DIAGNOSTICS,ALLOGA UK LTD,"27,120.00",Nov-21
Department Of Health,United Lincolnshire Hospitals NHS Trust,2021-11-18,PHARMACY,DIAGNOSTICS,ALLOGA UK LTD,"27,120.00",Nov-21
Department Of Health,United Lincolnshire Hospitals NHS Trust,2021-11-29,PHARMACY,DIAGNOSTICS,ALLOGA UK LTD,"27,120.00",Nov-21
Department Of Health,United Lincolnshire Hospitals NHS Trust,2021-11-18,DESKTOP HARD/W,DIRECTOR OF FINANCE & DIGITAL,ALTODIGITAL NETWORKS LTD,"75,234.00",Nov-21
Department Of Health,United Lincolnshire Hospitals NHS Trust,2021-11-18,WATER AND SEWERAGE,DIRECTOR OF ESTATES & FACIL,ANGLIAN WATER BUSINESS NATIONAL LTD,"79,218.00",Nov-21
Department Of Health,United Lincolnshire Hospitals NHS Trust,2021-11-11,HIRE OF CLINICAL EQUIPMENT,DIRECTOR OF NURSING,ARJO UK LIMITED,"118,075.56",Nov-21
Department Of Health,United Lincolnshire Hospitals NHS Trust,2021-11-25,HIRE OF CLINICAL EQUIPMENT,DIRECTOR OF NURSING,ARJO UK LIMITED,"132,382.44",Nov-21
Department Of Health,United Lincolnshire Hospitals NHS Trust,2021-11-18,AGENCY HCA  OTHER SUPP STAFF,DIRECTOR OF ESTATES & FACIL,BARKER ROSS STAFFING SOLUTIONS LTD,"27,042.76",Nov-21
Department Of Health,United Lincolnshire Hospitals NHS Trust,2021-11-25,AGENCY HCA  OTHER SUPP STAFF,DIRECTOR OF ESTATES & FACIL,BARKER ROSS STAFFING SOLUTIONS LTD,"28,354.09",Nov-21
Department Of Health,United Lincolnshire Hospitals NHS Trust,2021-11-25,AGENCY HCA  OTHER SUPP STAFF,DIRECTOR OF ESTATES & FACIL,BARKER ROSS STAFFING SOLUTIONS LTD,"25,528.15",Nov-21
Department Of Health,United Lincolnshire Hospitals NHS Trust,2021-11-25,AGENCY HCA  OTHER SUPP STAFF,DIRECTOR OF ESTATES & FACIL,BARKER ROSS STAFFING SOLUTIONS LTD,"25,786.30",Nov-21
Department Of Health,United Lincolnshire Hospitals NHS Trust,2021-11-18,PHARMACY PILGRIM,DIAGNOSTICS,BAYER PLC,"27,373.68",Nov-21
Department Of Health,United Lincolnshire Hospitals NHS Trust,2021-11-25,PHARMACY PILGRIM,DIAGNOSTICS,BAYER PLC,"27,373.68",Nov-21
Department Of Health,United Lincolnshire Hospitals NHS Trust,2021-11-18,EXTERNAL LAUNDRY CONTRACT,DIRECTOR OF ESTATES & FACIL,BERENDSEN HEALTHCARE LTD,"38,434.89",Nov-21
Department Of Health,United Lincolnshire Hospitals NHS Trust,2021-11-25,EXTERNAL LAUNDRY CONTRACT,DIRECTOR OF ESTATES & FACIL,BERENDSEN HEALTHCARE LTD,"51,099.15",Nov-21
Department Of Health,United Lincolnshire Hospitals NHS Trust,2021-11-18,PHARMACY,DIAGNOSTICS,BIOTEST (UK) LTD,"40,425.00",Nov-21
Department Of Health,United Lincolnshire Hospitals NHS Trust,2021-11-11,OTHER TRANSPORT COSTS,DIRECTOR OF ESTATES & FACIL,BRIAN JOHNSTON & CO (INSURANCE BROKERS),"71,373.00",Nov-21
Department Of Health,United Lincolnshire Hospitals NHS Trust,2021-11-11,BUILD MAINT EXT CONTRACTS,DIRECTOR OF ESTATES & FACIL,CANON MEDICAL SYSTEMS LTD,"38,959.28",Nov-21
Department Of Health,United Lincolnshire Hospitals NHS Trust,2021-11-11,FINANCIAL LEDGER,DIRECTOR OF FINANCE & DIGITAL,CAPITA SECURE INFORMATION SOLUTIONS LTD,"149,838.00",Nov-21
Department Of Health,United Lincolnshire Hospitals NHS Trust,2021-11-25,AGENCY HCA  OTHER SUPP STAFF,DIRECTOR OF ESTATES & FACIL,CRYSTAL FACILITIES MANAGEMENT LTD,"74,412.00",Nov-21
Department Of Health,United Lincolnshire Hospitals NHS Trust,2021-11-25,COMPUTER HARDWARE,CAPITAL PROGRAMME,DELL COMPUTER CORPORATION,"76,824.00",Nov-21
Department Of Health,United Lincolnshire Hospitals NHS Trust,2021-11-11,ENGINEERING SERVICES,CAPITAL PROGRAMME,EAST KIRKBY ENGINEERING CO LTD,"61,835.05",Nov-21
Department Of Health,United Lincolnshire Hospitals NHS Trust,2021-11-18,ENGINEERING SERVICES,CAPITAL PROGRAMME,EAST KIRKBY ENGINEERING CO LTD,"100,959.11",Nov-21
Department Of Health,United Lincolnshire Hospitals NHS Trust,2021-10-18,ELECTRICITY,DIRECTOR OF ESTATES & FACIL,EDF ENERGY 1 LIMITED,"88,782.71",Nov-21
Department Of Health,United Lincolnshire Hospitals NHS Trust,2021-10-18,ELECTRICITY,DIRECTOR OF ESTATES & FACIL,EDF ENERGY 1 LIMITED,"41,240.39",Nov-21
Department Of Health,United Lincolnshire Hospitals NHS Trust,2021-10-18,ELECTRICITY,DIRECTOR OF ESTATES & FACIL,EDF ENERGY 1 LIMITED,"42,770.33",Nov-21
Department Of Health,United Lincolnshire Hospitals NHS Trust,2021-11-16,ELECTRICITY,DIRECTOR OF ESTATES & FACIL,EDF ENERGY 1 LIMITED,"93,816.01",Nov-21
Department Of Health,United Lincolnshire Hospitals NHS Trust,2021-11-16,ELECTRICITY,DIRECTOR OF ESTATES & FACIL,EDF ENERGY 1 LIMITED,"42,803.21",Nov-21
Department Of Health,United Lincolnshire Hospitals NHS Trust,2021-11-16,ELECTRICITY,DIRECTOR OF ESTATES & FACIL,EDF ENERGY 1 LIMITED,"27,034.71",Nov-21
Department Of Health,United Lincolnshire Hospitals NHS Trust,2021-11-11,ENGINEERING SERVICES,CAPITAL PROGRAMME,EJ PARKER TECHNICAL SERVICES (LOUTH) LTD,"53,914.43",Nov-21
Department Of Health,United Lincolnshire Hospitals NHS Trust,2021-11-11,ENGINEERING SERVICES,CAPITAL PROGRAMME,EJ PARKER TECHNICAL SERVICES (LOUTH) LTD,"31,739.53",Nov-21
Department Of Health,United Lincolnshire Hospitals NHS Trust,2021-11-11,MSSE CONSUMABLES,THERAPIES & REHAB TRUSTWIDE,FRESENIUS KABI LTD,"30,381.17",Nov-21
Department Of Health,United Lincolnshire Hospitals NHS Trust,2021-11-18,MSSE CONSUMABLES,THERAPIES & REHAB TRUSTWIDE,FRESENIUS KABI LTD,"29,679.44",Nov-21
Department Of Health,United Lincolnshire Hospitals NHS Trust,2021-11-11,SW SUPPORT,DIAGNOSTICS TRUSTWIDE,GE MEDICAL SYSTEMS LTD,"143,328.86",Nov-21
Department Of Health,United Lincolnshire Hospitals NHS Trust,2021-11-11,Building Works,CAPITAL PROGRAMME,GELDER LTD,"27,029.07",Nov-21
Department Of Health,United Lincolnshire Hospitals NHS Trust,2021-11-18,Building Works,CAPITAL PROGRAMME,GELDER LTD,"70,662.90",Nov-21
Department Of Health,United Lincolnshire Hospitals NHS Trust,2021-11-25,INTERNAL AUDIT,DIRECTOR OF FINANCE & DIGITAL,GRANT THORNTON UK LLP,"41,715.00",Nov-21
Department Of Health,United Lincolnshire Hospitals NHS Trust,2021-11-11,QUALIFIED AGENCY INVOICES,DIRECTOR OF NURSING,GROUP 24 LTD T/A NURSING 24,"183,897.00",Nov-21
Department Of Health,United Lincolnshire Hospitals NHS Trust,2021-11-11,QUALIFIED AGENCY INVOICES,DIRECTOR OF NURSING,GROUP 24 LTD T/A NURSING 24,"190,928.40",Nov-21
Department Of Health,United Lincolnshire Hospitals NHS Trust,2021-11-25,QUALIFIED AGENCY INVOICES,DIRECTOR OF NURSING,GROUP 24 LTD T/A NURSING 24,"191,400.81",Nov-21
Department Of Health,United Lincolnshire Hospitals NHS Trust,2021-11-25,QUALIFIED AGENCY INVOICES,DIRECTOR OF NURSING,GROUP 24 LTD T/A NURSING 24,"213,403.65",Nov-21
Department Of Health,United Lincolnshire Hospitals NHS Trust,2021-11-29,QUALIFIED AGENCY INVOICES,DIRECTOR OF NURSING,GROUP 24 LTD T/A NURSING 24,"220,046.75",Nov-21
Department Of Health,United Lincolnshire Hospitals NHS Trust,2021-11-25,Building Works,CAPITAL PROGRAMME,HARMONY FIRE LTD,"79,977.15",Nov-21
Department Of Health,United Lincolnshire Hospitals NHS Trust,2021-11-18,RECRUITMENT  EXPENSES,DIRECTOR OF PEOPLE & OD,HEALTH EDUCATION ENGLAND,"75,432.14",Nov-21
Department Of Health,United Lincolnshire Hospitals NHS Trust,2021-11-18,PHARMACY,DIAGNOSTICS,HEALTHCARE AT HOME,"25,890.17",Nov-21
Department Of Health,United Lincolnshire Hospitals NHS Trust,2021-11-18,PAYE,PAN TRUST,HM REVENUE & CUSTOMS,"3,947,301.93",Nov-21
Department Of Health,United Lincolnshire Hospitals NHS Trust,2021-11-18,PAYE,PAN TRUST,HM REVENUE & CUSTOMS,"4,335,521.02",Nov-21
Department Of Health,United Lincolnshire Hospitals NHS Trust,2021-11-18,PAYE,PAN TRUST,HM REVENUE & CUSTOMS,"129,332.00",Nov-21
Department Of Health,United Lincolnshire Hospitals NHS Trust,2021-11-18,QUALIFIED AGENCY INVOICES,DIRECTOR OF NURSING,ID MEDICAL GROUP LTD,"23,601.50",Nov-21
Department Of Health,United Lincolnshire Hospitals NHS Trust,2021-11-25,QUALIFIED AGENCY INVOICES,DIRECTOR OF NURSING,ID MEDICAL GROUP LTD,"26,526.01",Nov-21
Department Of Health,United Lincolnshire Hospitals NHS Trust,2021-11-25,QUALIFIED AGENCY INVOICES,DIRECTOR OF NURSING,ID MEDICAL GROUP LTD,"24,247.63",Nov-21
Department Of Health,United Lincolnshire Hospitals NHS Trust,2021-11-11,FUEL - STEAM,DIRECTOR OF ESTATES & FACIL,INDUSTRIAL ENERGY SERVICES LTD,"28,033.59",Nov-21
Department Of Health,United Lincolnshire Hospitals NHS Trust,2021-11-18,FUEL - STEAM,DIRECTOR OF ESTATES & FACIL,INDUSTRIAL ENERGY SERVICES LTD,"42,598.08",Nov-21
Department Of Health,United Lincolnshire Hospitals NHS Trust,2021-11-25,FUEL - STEAM,DIRECTOR OF ESTATES & FACIL,INDUSTRIAL ENERGY SERVICES LTD,"64,132.72",Nov-21
Department Of Health,United Lincolnshire Hospitals NHS Trust,2021-11-18,Building Works,CAPITAL PROGRAMME,J TOMLINSON LTD,"145,219.52",Nov-21
Department Of Health,United Lincolnshire Hospitals NHS Trust,2021-11-18,Building Works,CAPITAL PROGRAMME,J TOMLINSON LTD,"121,253.63",Nov-21
Department Of Health,United Lincolnshire Hospitals NHS Trust,2021-11-04,Building Works,CAPITAL PROGRAMME,JOHN GRAHAM CONSTRUCTION LIMITED,"140,215.33",Nov-21
Department Of Health,United Lincolnshire Hospitals NHS Trust,2021-11-25,Building Works,CAPITAL PROGRAMME,JOHN GRAHAM CONSTRUCTION LIMITED,"119,357.26",Nov-21
Department Of Health,United Lincolnshire Hospitals NHS Trust,2021-11-29,CONSULTANCY DELIVERY,IMPROVEMENT AND INTEGRATION,KPMG LLP,"122,999.47",Nov-21
Department Of Health,United Lincolnshire Hospitals NHS Trust,2021-11-11,LLOYDS PHARMACY,CHIEF PHARMACIST TRUSTWIDE,L ROWLAND & CO (RETAIL) LTD,"1,315,073.09",Nov-21
Department Of Health,United Lincolnshire Hospitals NHS Trust,2021-11-26,LLOYDS PHARMACY,CHIEF PHARMACIST TRUSTWIDE,L ROWLAND & CO (RETAIL) LTD,"1,214,521.33",Nov-21
Department Of Health,United Lincolnshire Hospitals NHS Trust,2021-11-11,Rowlands dispensing costs,CHIEF PHARMACIST TRUSTWIDE,L ROWLAND & CO (RETAIL) LTD,"80,630.00",Nov-21
Department Of Health,United Lincolnshire Hospitals NHS Trust,2021-11-29,Rowlands dispensing costs,CHIEF PHARMACIST TRUSTWIDE,L ROWLAND & CO (RETAIL) LTD,"83,723.00",Nov-21
Department Of Health,United Lincolnshire Hospitals NHS Trust,2021-11-11,CLINICAL SERVICE CONTRACT,THERAPIES & REHAB TRUSTWIDE,LINCOLNSHIRE COMMUNITY HEALTH SERVICES,"47,187.83",Nov-21
Department Of Health,United Lincolnshire Hospitals NHS Trust,2021-11-11,OTHER NURSING,DIRECTOR OF FINANCE & DIGITAL,LINCOLNSHIRE COMMUNITY HEALTH SERVICES,"114,266.22",Nov-21
Department Of Health,United Lincolnshire Hospitals NHS Trust,2021-11-25,OTHER NURSING,DIRECTOR OF FINANCE & DIGITAL,LINCOLNSHIRE COMMUNITY HEALTH SERVICES,"114,266.22",Nov-21
Department Of Health,United Lincolnshire Hospitals NHS Trust,2021-11-18,EXTERNAL CONTRACTS,DIRECTORATE OF CHILDS HEALTH,LINCOLNSHIRE PARTNERSHIP NHS TRUST,"61,684.56",Nov-21
Department Of Health,United Lincolnshire Hospitals NHS Trust,2021-11-25,EXTERNAL PAYROLL CONTRACT,DIRECTOR OF FINANCE & DIGITAL,LINCOLNSHIRE PARTNERSHIP NHS TRUST,"35,446.67",Nov-21
Department Of Health,United Lincolnshire Hospitals NHS Trust,2021-11-18,CLINICAL SERVICE CONTRACT,DIAGNOSTICS TRUSTWIDE,MEDICA GROUP,"40,020.00",Nov-21
Department Of Health,United Lincolnshire Hospitals NHS Trust,2021-11-18,CLINICAL SERVICE CONTRACT,DIAGNOSTICS TRUSTWIDE,MEDICA GROUP,"38,602.00",Nov-21
Department Of Health,United Lincolnshire Hospitals NHS Trust,2021-11-11,QUALIFIED AGENCY INVOICES,DIRECTOR OF NURSING,MEDICAL PROFESSIONAL PERSONNEL LTD,"21,091.10",Nov-21
Department Of Health,United Lincolnshire Hospitals NHS Trust,2021-11-22,DIAGNOSTIC TESTS NON NHS,DIAGNOSTICS TRUSTWIDE,MEDISPACE B.V.,"55,200.00",Nov-21
Department Of Health,United Lincolnshire Hospitals NHS Trust,2021-11-22,DIAGNOSTIC TESTS NON NHS,DIAGNOSTICS TRUSTWIDE,MEDISPACE B.V.,"72,000.00",Nov-21
Department Of Health,United Lincolnshire Hospitals NHS Trust,2021-11-24,DIAGNOSTIC TESTS NON NHS,DIAGNOSTICS TRUSTWIDE,MEDISPACE B.V.,"82,000.00",Nov-21
Department Of Health,United Lincolnshire Hospitals NHS Trust,2021-11-11,EXTERNAL CONTRACTS,DIRECTOR OF ESTATES & FACIL,MPD FM LIMITED,"21,217.02",Nov-21
Department Of Health,United Lincolnshire Hospitals NHS Trust,2021-11-25,EXTERNAL CONTRACTS,DIRECTOR OF ESTATES & FACIL,MPD FM LIMITED,"22,888.80",Nov-21
Department Of Health,United Lincolnshire Hospitals NHS Trust,2021-11-25,EXTERNAL CONTRACTS,DIRECTOR OF ESTATES & FACIL,MPD FM LIMITED,"23,766.77",Nov-21
Department Of Health,United Lincolnshire Hospitals NHS Trust,2021-11-11,QUALIFIED AGENCY INVOICES,DIRECTOR OF NURSING,MSL HEALTHCARE LIMITED,"21,581.25",Nov-21
Department Of Health,United Lincolnshire Hospitals NHS Trust,2021-11-11,QUALIFIED AGENCY INVOICES,DIRECTOR OF NURSING,MSL HEALTHCARE LIMITED,"20,989.75",Nov-21
Department Of Health,United Lincolnshire Hospitals NHS Trust,2021-11-25,QUALIFIED AGENCY INVOICES,DIRECTOR OF NURSING,MSL HEALTHCARE LIMITED,"22,368.50",Nov-21
Department Of Health,United Lincolnshire Hospitals NHS Trust,2021-11-25,BLOOD PRODUCTS,BLOOD & PATHLINKS TRUSTWIDE,NHS BLOOD AND TRANSPLANT,"61,378.04",Nov-21
Department Of Health,United Lincolnshire Hospitals NHS Trust,2021-11-25,BLOOD PRODUCTS,BLOOD & PATHLINKS TRUSTWIDE,NHS BLOOD AND TRANSPLANT,"77,632.07",Nov-21
Department Of Health,United Lincolnshire Hospitals NHS Trust,2021-11-11,SERVICE AND FM CHARGES,CORPORATE FINANCE,NHS PROPERTY SERVICES LTD,"27,894.46",Nov-21
Department Of Health,United Lincolnshire Hospitals NHS Trust,2021-11-15,CNST CONTRIBUTIONS,DIRECTOR OF NURSING,NHS RESOLUTION,"1,647,614.60",Nov-21
Department Of Health,United Lincolnshire Hospitals NHS Trust,2021-11-15,CNST CONTRIBUTIONS,WOMENS HEALTH AND BREAST SERVS,NHS RESOLUTION,"705,797.10",Nov-21
Department Of Health,United Lincolnshire Hospitals NHS Trust,2021-11-18,PHARMACY,DIAGNOSTICS,NOVARTIS PHARMACEUTICALS,"25,769.72",Nov-21
Department Of Health,United Lincolnshire Hospitals NHS Trust,2021-11-18,PHARMACY,DIAGNOSTICS,NOVARTIS PHARMACEUTICALS,"25,985.11",Nov-21
Department Of Health,United Lincolnshire Hospitals NHS Trust,2021-11-29,PHARMACY,DIAGNOSTICS,NOVARTIS PHARMACEUTICALS,"25,758.94",Nov-21
Department Of Health,United Lincolnshire Hospitals NHS Trust,2021-11-25,QUALIFIED AGENCY INVOICES,DIRECTOR OF NURSING,NUTRIX PERSONNEL LTD,"25,399.17",Nov-21
Department Of Health,United Lincolnshire Hospitals NHS Trust,2021-11-25,QUALIFIED AGENCY INVOICES,DIRECTOR OF NURSING,NUTRIX PERSONNEL LTD,"29,424.00",Nov-21
Department Of Health,United Lincolnshire Hospitals NHS Trust,2021-11-25,QUALIFIED AGENCY INVOICES,DIRECTOR OF NURSING,NUTRIX PERSONNEL LTD,"47,069.50",Nov-21
Department Of Health,United Lincolnshire Hospitals NHS Trust,2021-11-25,QUALIFIED AGENCY INVOICES,DIRECTOR OF NURSING,NUTRIX PERSONNEL LTD,"41,385.00",Nov-21
Department Of Health,United Lincolnshire Hospitals NHS Trust,2021-11-11,SERVICE AND FM CHARGES,DIRECTOR OF ESTATES & FACIL,PROGRESS HOUSING ASSOCIATION LTD,"129,596.62",Nov-21
Department Of Health,United Lincolnshire Hospitals NHS Trust,2021-11-25,SERVICE AND FM CHARGES,DIRECTOR OF ESTATES & FACIL,PROGRESS HOUSING ASSOCIATION LTD,"131,366.21",Nov-21
Department Of Health,United Lincolnshire Hospitals NHS Trust,2021-11-18,CONSULTANCY DELIVERY,CHIEF OPERATING OFFICER,PUBLIC VIEW LTD,"28,500.00",Nov-21
Department Of Health,United Lincolnshire Hospitals NHS Trust,2021-10-07,POSTAGE,DIRECTOR OF ESTATES & FACIL,QUADIENT UK LIMITED,"24,937.03",Nov-21
Department Of Health,United Lincolnshire Hospitals NHS Trust,2021-11-18,POSTAGE,DIRECTOR OF ESTATES & FACIL,QUADIENT UK LIMITED,"50,000.00",Nov-21
Department Of Health,United Lincolnshire Hospitals NHS Trust,2021-11-18,MEDICAL RECORD STORAGE,DIRECTOR OF FINANCE & DIGITAL,RESTORE PLC - (WAS MAGNUM),"41,466.07",Nov-21
Department Of Health,United Lincolnshire Hospitals NHS Trust,2021-11-18,PHARMACY,DIAGNOSTICS,ROCHE PRODUCTS LTD,"36,705.60",Nov-21
Department Of Health,United Lincolnshire Hospitals NHS Trust,2021-11-29,PHARMACY,DIAGNOSTICS,ROCHE PRODUCTS LTD,"34,286.40",Nov-21
Department Of Health,United Lincolnshire Hospitals NHS Trust,2021-11-11,MSSE CONSUMABLES,DIAGNOSTICS TRUSTWIDE,SCCL - NHS SUPPLY CHAIN (MAINTENANCE),"39,960.00",Nov-21
Department Of Health,United Lincolnshire Hospitals NHS Trust,2021-11-18,XRAY MAINTENANCE,DIAGNOSTICS TRUSTWIDE,SCCL - NHS SUPPLY CHAIN (MAINTENANCE),"63,593.16",Nov-21
Department Of Health,United Lincolnshire Hospitals NHS Trust,2021-11-11,RESUS STOCK CONSUMABLES,PAN TRUST,SCCL - NHS SUPPLY CHAIN (PRODUCT SALES),"482,174.46",Nov-21
Department Of Health,United Lincolnshire Hospitals NHS Trust,2021-11-11,RESUS STOCK CONSUMABLES,PAN TRUST,SCCL - NHS SUPPLY CHAIN (PRODUCT SALES),"418,734.69",Nov-21
Department Of Health,United Lincolnshire Hospitals NHS Trust,2021-11-18,RESUS STOCK CONSUMABLES,PAN TRUST,SCCL - NHS SUPPLY CHAIN (PRODUCT SALES),"504,269.67",Nov-21
Department Of Health,United Lincolnshire Hospitals NHS Trust,2021-11-25,RESUS STOCK CONSUMABLES,PAN TRUST,SCCL - NHS SUPPLY CHAIN (PRODUCT SALES),"385,881.65",Nov-21
Department Of Health,United Lincolnshire Hospitals NHS Trust,2021-11-29,RESUS STOCK CONSUMABLES,PAN TRUST,SCCL - NHS SUPPLY CHAIN (PRODUCT SALES),"639,829.69",Nov-21
Department Of Health,United Lincolnshire Hospitals NHS Trust,2021-11-11,COMPUTER PURCHASE ACCESSORIES,DIRECTOR OF NURSING,SOFTCAT LTD,"224,264.40",Nov-21
Department Of Health,United Lincolnshire Hospitals NHS Trust,2021-11-11,COMPUTER PURCHASE ACCESSORIES,DIRECTOR OF NURSING,SOFTCAT LTD,"255,098.40",Nov-21
Department Of Health,United Lincolnshire Hospitals NHS Trust,2021-11-18,WASTE DISPOSAL-CLINICAL,DIRECTOR OF ESTATES & FACIL,SRCL LTD,"44,477.08",Nov-21
Department Of Health,United Lincolnshire Hospitals NHS Trust,2021-11-18,WASTE DISPOSAL-CLINICAL,DIRECTOR OF ESTATES & FACIL,SRCL LTD,"55,551.84",Nov-21
Department Of Health,United Lincolnshire Hospitals NHS Trust,2021-11-25,WASTE DISPOSAL-CLINICAL,DIRECTOR OF ESTATES & FACIL,SRCL LTD,"39,903.47",Nov-21
Department Of Health,United Lincolnshire Hospitals NHS Trust,2021-11-18,ACCOMMODATION,DIRECTOR OF ESTATES & FACIL,ST BARNABAS HOSPICE,"64,800.00",Nov-21
Department Of Health,United Lincolnshire Hospitals NHS Trust,2021-11-11,CLINICAL SERVICES FROM NON-NHS,TACC & PAIN,SYNERGY HEALTH (UK) LTD,"342,679.10",Nov-21
Department Of Health,United Lincolnshire Hospitals NHS Trust,2021-11-18,FINANCIAL LEDGER,DIRECTOR OF FINANCE & DIGITAL,SYSTEM C HEALTHCARE LTD,"136,241.05",Nov-21
Department Of Health,United Lincolnshire Hospitals NHS Trust,2021-11-11,CLINICAL SERVICES FROM NON-NHS,OUTPATIENT SERVICES TRUSTWIDE,THE SNORING DISORDERS CENTRE LTD,"27,134.25",Nov-21
Department Of Health,United Lincolnshire Hospitals NHS Trust,2021-11-11,CPAP MACHINES,SURGERY AND HEAD & NECK,THE SNORING DISORDERS CENTRE LTD,"61,073.60",Nov-21
Department Of Health,United Lincolnshire Hospitals NHS Trust,2021-11-18,CPAP MACHINES,SURGERY AND HEAD & NECK,THE SNORING DISORDERS CENTRE LTD,"56,125.92",Nov-21
Department Of Health,United Lincolnshire Hospitals NHS Trust,2021-11-25,CPAP MACHINES,SURGERY AND HEAD & NECK,THE SNORING DISORDERS CENTRE LTD,"50,737.60",Nov-21
Department Of Health,United Lincolnshire Hospitals NHS Trust,2021-11-11,CLINICAL SERVICE CONTRACT,DIAGNOSTICS TRUSTWIDE,TXM TELECONSULT LTD T/A TELECONSULT UK,"50,156.91",Nov-21
Department Of Health,United Lincolnshire Hospitals NHS Trust,2021-11-25,CLINICAL SERVICE CONTRACT,DIAGNOSTICS TRUSTWIDE,TXM TELECONSULT LTD T/A TELECONSULT UK,"26,844.00",Nov-21
Department Of Health,United Lincolnshire Hospitals NHS Trust,2021-11-25,CLINICAL SERVICE CONTRACT,TACC & PAIN,VANGUARD HEALTHCARE SOLUTIONS LTD,"71,121.60",Nov-21
Department Of Health,United Lincolnshire Hospitals NHS Trust,2021-11-18,EQUIPMENT,CAPITAL PROGRAMME,WERFEN LIMITED,"42,000.00",Nov-21
Department Of Health,United Lincolnshire Hospitals NHS Trust,2021-11-25,MAINTENANCE CONTRACTS AND MATS,CANCER SERVICES,XIEL LTD,"31,045.55",Nov-21
